lending/lending_fUSD_20250303
["ID","MTS","AMOUNT","RATE_DAILY","PERIOD"]
[355217592,1741020640766,-996.49,0.00014778,2]
[355217593,1741020640775,-544.98649734,0.00014778,2]
[355217594,1741020640784,-522.2,0.00014778,2]
[355217595,1741020640793,-500.0,0.00014778,2]
[355217596,1741020640802,-564.09,0.00014778,2]
[355217597,1741020640811,-500.0,0.00014778,2]
[355217598,1741020640821,-1504.58,0.00014778,2]
[355217599,1741020640831,-586.04754703,0.00014778,2]
[355217600,1741020640840,-761.99,0.00014778,2]
[355217601,1741020640849,-500.0,0.00014778,2]
[355217602,1741020640858,-500.0,0.00014778,2]
[355217603,1741020640867,-500.0,0.00014778,2]
[355217604,1741020640877,-500.0,0.00014778,2]
[355217605,1741020640887,-500.0,0.00014778,2]
[355217606,1741020640896,-500.0,0.00014778,2]
[355217607,1741020640905,-872.05,0.00014778,2]
[355217608,1741020640915,-1553.44,0.00014778,2]
[355217609,1741020640925,-554.53,0.00014778,2]
[355217610,1741020640934,-500.0,0.00014778,2]
[355217611,1741020640944,-604.95,0.00014778,2]
[355217612,1741020640953,-500.0,0.00014778,2]
[355217613,1741020640963,-500.0,0.00014778,2]
[355217614,1741020640971,-500.0,0.00014778,2]
[355217615,1741020640981,-500.0,0.00014778,2]
[355217616,1741020640993,-500.0,0.00014778,2]
[355217617,1741020641002,-584.64,0.00014778,2]
[355217618,1741020641011,-500.0,0.00014778,2]
[355217619,1741020641020,-608.40233636,0.00014778,2]
[355217620,1741020641030,-480.63604766,0.00014778,2]
[355217621,1741020641044,-22.59969778,0.00014778,2]
[355217622,1741020641055,-425.15042768,0.00014778,2]
[355217623,1741020641075,-74.84957232,0.00014778,2]
[355217624,1741020641086,-500.0,0.00014778,2]
[355217625,1741020641096,-327.93211595,0.00014778,2]
[355217626,1741020641691,-172.06788405,0.00014778,2]
[355217627,1741020641701,-598.45,0.00014778,2]
[355217628,1741020641710,-250.57711595,0.00014778,2]
[355217629,1741020641723,-250.73220826,0.00014778,2]
[355217630,1741020641732,-232.48575031,0.00014778,2]
[355217631,1741020641745,-267.51424969,0.00014778,2]
[355217632,1741020641756,-458.62347361,0.00014778,2]
[355217633,1741020641769,-41.37652639,0.00014778,2]
[355217634,1741020641779,-294.57798661,0.00014778,2]
[355217635,1741020641790,-205.42201339,0.00014778,2]
[355217636,1741020641800,-4549.1098824,0.00014778,2]
[355217637,1741020641850,-413.065,0.00014778,2]
[355217664,1741020643426,-500.0,0.00014778,2]
[355217665,1741020643436,-500.0,0.00014778,2]
[355217666,1741020643446,-500.0,0.00014778,2]
[355217667,1741020643455,-1117.63,0.00014778,2]
[355217668,1741020643464,-500.0,0.00014778,2]
[355217669,1741020643474,-500.0,0.00014778,2]
[355217670,1741020643483,-500.0,0.00014778,2]
[355217671,1741020643493,-500.0,0.00014778,2]
[355217672,1741020643503,-696.89,0.00014778,2]
[355217673,1741020643512,-500.0,0.00014778,2]
[355217674,1741020643521,-2433.94,0.00014778,2]
[355217675,1741020643531,-500.0,0.00014778,2]
[355217676,1741020643540,-5960.51124,0.00014778,2]
[355217677,1741020643550,-1587.16,0.00014778,2]
[355217678,1741020643559,-500.0,0.00014778,2]
[355217679,1741020643569,-1329.96,0.00014778,2]
[355217680,1741020643578,-651.34,0.00014778,2]
[355217681,1741020643588,-500.0,0.00014778,2]
[355217682,1741020643597,-500.0,0.00014778,2]
[355217683,1741020643606,-7614.996654,0.00014778,2]
[355217684,1741020643616,-956.85,0.00014778,2]
[355217685,1741020643625,-500.0,0.00014778,2]
[355217686,1741020643634,-500.0,0.00014778,2]
[355217687,1741020643643,-500.0,0.00014778,2]
[355217688,1741020643653,-1896.722106,0.00014778,2]
[355217689,1741020643769,-22.547894,0.00014778,2]
[355217690,1741020643780,-500.0,0.00014778,2]
[355217691,1741020643789,-3526.07,0.00014778,2]
[355217692,1741020643799,-500.0,0.00014778,2]
[355217693,1741020643808,-1049.17,0.00014778,2]
[355217694,1741020643818,-500.0,0.00014778,2]
[355217695,1741020643827,-500.0,0.00014778,2]
[355217696,1741020643837,-882.98,0.00014778,2]
[355217697,1741020643846,-5620.34,0.00014778,2]
[355217698,1741020643856,-500.0,0.00014778,2]
[355217699,1741020643866,-500.0,0.00014778,2]
[355217700,1741020643875,-2327.99,0.00014778,2]
[355217701,1741020643884,-2228.95,0.00014778,2]
[355217702,1741020643894,-500.0,0.00014778,2]
[355217703,1741020643903,-500.0,0.00014778,2]
[355217704,1741020643912,-2641.62,0.00014778,2]
[355217705,1741020643921,-150.369306,0.00014778,2]
[355217706,1741020643931,-500.0,0.00014778,2]
[355217707,1741020643940,-500.0,0.00014778,2]
[355217708,1741020643949,-500.0,0.00014778,2]
[355217709,1741020643959,-500.0,0.00014778,2]
[355217710,1741020643968,-500.0,0.00014778,2]
[355217711,1741020643978,-7346.66,0.00014778,2]
[355217712,1741020643988,-500.0,0.00014778,2]
[355217713,1741020643999,-2511.17,0.00014778,2]
[355217714,1741020644009,-500.0,0.00014778,2]
[355217715,1741020644018,-500.0,0.00014778,2]
[355217716,1741020644028,-2209.81,0.00014778,2]
[355217717,1741020644037,-500.0,0.00014778,2]
[355217718,1741020644046,-500.0,0.00014778,2]
[355217719,1741020644057,-500.0,0.00014778,2]
[355217720,1741020644066,-500.0,0.00014778,2]
[355217721,1741020644075,-1192.59,0.00014778,2]
[355217722,1741020644084,-500.0,0.00014778,2]
[355217723,1741020644094,-500.0,0.00014778,2]
[355217724,1741020644107,-500.0,0.00014778,2]
[355217725,1741020644116,-500.0,0.00014778,2]
[355217726,1741020644125,-500.0,0.00014778,2]
[355217727,1741020644135,-500.0,0.00014778,2]
[355217728,1741020644145,-5543.07,0.00014778,2]
[355217729,1741020644154,-500.0,0.00014778,2]
[355217730,1741020644163,-500.0,0.00014778,2]
[355217731,1741020644172,-500.0,0.00014778,2]
[355217732,1741020644182,-500.0,0.00014778,2]
[355217733,1741020644191,-589.34,0.00014778,2]
[355217734,1741020644200,-4406.71,0.00014778,2]
[355217735,1741020644213,-500.0,0.00014778,2]
[355217736,1741020644222,-500.0,0.00014778,2]
[355217737,1741020644232,-500.0,0.00014778,2]
[355217738,1741020644241,-6844.23,0.00014778,2]
[355217739,1741020644252,-500.0,0.00014778,2]
[355217740,1741020644262,-1624.41,0.00014778,2]
[355217741,1741020644272,-500.0,0.00014778,2]
[355217742,1741020644281,-500.0,0.00014778,2]
[355217743,1741020644291,-2003.5,0.00014778,2]
[355217744,1741020644300,-500.0,0.00014778,2]
[355217745,1741020644310,-500.0,0.00014778,2]
[355217746,1741020644319,-500.0,0.00014778,2]
[355217747,1741020644329,-1403.47,0.00014778,2]
[355217748,1741020644338,-500.0,0.00014778,2]
[355217749,1741020644348,-500.0,0.00014778,2]
[355217750,1741020644357,-2328.36,0.00014778,2]
[355217751,1741020644367,-500.0,0.00014778,2]
[355217752,1741020644376,-2225.7,0.00014778,2]
[355217753,1741020644386,-500.0,0.00014778,2]
[355217754,1741020644395,-1312.78,0.00014778,2]
[355217755,1741020644405,-977.38,0.00014778,2]
[355217756,1741020644414,-500.0,0.00014778,2]
[355217757,1741020644423,-500.0,0.00014778,2]
[355217758,1741020644432,-500.0,0.00014778,2]
[355217759,1741020644442,-500.0,0.00014778,2]
[355217760,1741020644451,-500.0,0.00014778,2]
[355217761,1741020644460,-1121.94,0.00014778,2]
[355217762,1741020644469,-2144.16,0.00014778,2]
[355217763,1741020644479,-500.0,0.00014778,2]
[355217764,1741020644489,-1117.24,0.00014778,2]
[355217765,1741020644501,-500.0,0.00014778,2]
[355217766,1741020644511,-1499.96,0.00014778,2]
[355217767,1741020644520,-1321.81,0.00014778,2]
[355217768,1741020644530,-500.0,0.00014778,2]
[355217769,1741020644539,-749.17,0.00014778,2]
[355217770,1741020644549,-380.5327962,0.00014778,2]
[355217771,1741020644559,-1495.12,0.00014778,2]
[355217772,1741020644568,-500.0,0.00014778,2]
[355217773,1741020644578,-500.0,0.00014778,2]
[355217774,1741020644587,-500.0,0.00014778,2]
[355217775,1741020644596,-2018.28,0.00014778,2]
[355217776,1741020644606,-557.9,0.00014778,2]
[355217777,1741020644615,-1861.67,0.00014778,2]
[355217778,1741020644624,-500.0,0.00014778,2]
[355217779,1741020644634,-500.0,0.00014778,2]
[355217780,1741020644643,-500.0,0.00014778,2]
[355217781,1741020644653,-2635.28,0.00014778,2]
[355217782,1741020644663,-500.0,0.00014778,2]
[355217783,1741020644862,-1370.12,0.00014778,2]
[355217784,1741020644872,-817.43,0.00014778,2]
[355217785,1741020644881,-714.78,0.00014778,2]
[355217786,1741020644890,-597.12853527,0.00014778,2]
[355217787,1741020644899,-619.15,0.00014778,2]
[355217788,1741020644909,-500.0,0.00014778,2]
[355217789,1741020644918,-865.46,0.00014778,2]
[355217790,1741020644927,-719.74,0.00014778,2]
[355217791,1741020644937,-500.0,0.00014778,2]
[355217792,1741020644947,-2078.79,0.00014778,2]
[355217793,1741020644956,-1746.67,0.00014778,2]
[355217794,1741020644966,-500.0,0.00014778,2]
[355217795,1741020644975,-500.0,0.00014778,2]
[355217796,1741020644984,-500.0,0.00014778,2]
[355217797,1741020644994,-500.0,0.00014778,2]
[355217798,1741020645003,-500.0,0.00014778,2]
[355217799,1741020645013,-500.0,0.00014778,2]
[355217800,1741020645022,-500.0,0.00014778,2]
[355217801,1741020645031,-500.0,0.00014778,2]
[355217802,1741020645041,-500.0,0.00014778,2]
[355217803,1741020645050,-500.0,0.00014778,2]
[355217804,1741020645059,-896.23,0.00014778,2]
[355217805,1741020645069,-7929.39,0.00014778,2]
[355217806,1741020645078,-500.0,0.00014778,2]
[355217807,1741020645087,-500.0,0.00014778,2]
[355217808,1741020645099,-500.0,0.00014778,2]
[355217809,1741020645109,-500.0,0.00014778,2]
[355217810,1741020645118,-500.0,0.00014778,2]
[355217811,1741020645127,-530.77,0.00014778,2]
[355217812,1741020645137,-500.0,0.00014778,2]
[355217813,1741020645146,-550.73,0.00014778,2]
[355217814,1741020645156,-500.0,0.00014778,2]
[355217815,1741020645166,-1826.73,0.00014778,2]
[355217816,1741020645175,-500.0,0.00014778,2]
[355217817,1741020645184,-500.0,0.00014778,2]
[355217818,1741020645194,-500.0,0.00014778,2]
[355217819,1741020645203,-2633.05,0.00014778,2]
[355217820,1741020645212,-1973.63,0.00014778,2]
[355217821,1741020645221,-500.0,0.00014778,2]
[355217822,1741020645230,-500.0,0.00014778,2]
[355217823,1741020645239,-500.0,0.00014778,2]
[355217824,1741020645251,-500.0,0.00014778,2]
[355217825,1741020645260,-500.0,0.00014778,2]
[355217826,1741020645270,-500.0,0.00014778,2]
[355217827,1741020645280,-500.0,0.00014778,2]
[355217828,1741020645289,-500.0,0.00014778,2]
[355217829,1741020645299,-500.0,0.00014778,2]
[355217830,1741020645308,-500.0,0.00014778,2]
[355217831,1741020645317,-11550.6,0.00014778,2]
[355217832,1741020645326,-1333.13,0.00014778,2]
[355217833,1741020645336,-546.97,0.00014778,2]
[355217834,1741020645345,-500.0,0.00014778,2]
[355217835,1741020645354,-173.73304024,0.00014778,2]
[355217836,1741020645365,-500.0,0.00014778,2]
[355217837,1741020645375,-1366.15,0.00014778,2]
[355217838,1741020645385,-927.38,0.00014778,2]
[355217839,1741020645394,-1558.53,0.00014778,2]
[355217840,1741020645404,-500.0,0.00014778,2]
[355217841,1741020645413,-777.47,0.00014778,2]
[355217842,1741020645422,-500.0,0.00014778,2]
[355217843,1741020645431,-15968.92,0.00014778,2]
[355217844,1741020645441,-500.0,0.00014778,2]
[355217845,1741020645450,-2179.04,0.00014778,2]
[355217846,1741020645459,-517.89530473,0.00014778,2]
[355217847,1741020645469,-1103.23,0.00014778,2]
[355217848,1741020645479,-500.0,0.00014778,2]
[355217849,1741020645489,-500.0,0.00014778,2]
[355217850,1741020645501,-1286.08,0.00014778,2]
[355217851,1741020645510,-500.0,0.00014778,2]
[355217852,1741020645520,-2629.02,0.00014778,2]
[355217853,1741020645529,-864.97,0.00014778,2]
[355217854,1741020645538,-1400.97,0.00014778,2]
[355217855,1741020645548,-500.0,0.00014778,2]
[355217856,1741020645557,-500.0,0.00014778,2]
[355217857,1741020645566,-500.0,0.00014778,2]
[355217858,1741020645576,-496.0,0.00014778,2]
[355217859,1741020645585,-1691.36,0.00014778,2]
[355217860,1741020645594,-1351.55,0.00014778,2]
[355217862,1741020645604,-500.0,0.00014778,2]
[355217864,1741020645613,-1302.99,0.00014778,2]
[355217866,1741020645622,-500.0,0.00014778,2]
[355217868,1741020645631,-331.03930702,0.00014778,2]
[355217870,1741020645641,-500.0,0.00014778,2]
[355217872,1741020645649,-500.0,0.00014778,2]
[355217874,1741020645659,-500.0,0.00014778,2]
[355217876,1741020645668,-500.0,0.00014778,2]
[355217877,1741020645678,-500.0,0.00014778,2]
[355217879,1741020645688,-500.0,0.00014778,2]
[355217881,1741020645697,-500.0,0.00014778,2]
[355217883,1741020645706,-945.63,0.00014778,2]
[355217885,1741020645715,-500.0,0.00014778,2]
[355217887,1741020645724,-714.0,0.00014778,2]
[355217889,1741020645733,-760.06,0.00014778,2]
[355217891,1741020645743,-500.0,0.00014778,2]
[355217893,1741020645752,-500.0,0.00014778,2]
[355217894,1741020645762,-1065.24,0.00014778,2]
[355217895,1741020645771,-500.0,0.00014778,2]
[355217896,1741020645780,-500.0,0.00014778,2]
[355217897,1741020645789,-500.0,0.00014778,2]
[355217898,1741020645798,-5846.1,0.00014778,2]
[355217899,1741020645807,-500.0,0.00014778,2]
[355217900,1741020645816,-500.0,0.00014778,2]
[355217901,1741020645825,-586.94,0.00014778,2]
[355217902,1741020645834,-500.0,0.00014778,2]
[355217903,1741020645844,-1030.52,0.00014778,2]
[355217904,1741020645853,-500.0,0.00014778,2]
[355217905,1741020645862,-680.98,0.00014778,2]
[355217906,1741020645871,-500.0,0.00014778,2]
[355217907,1741020645880,-1526.98,0.00014778,2]
[355217908,1741020645889,-558.30314924,0.00014778,2]
[355217909,1741020645898,-500.0,0.00014778,2]
[355217910,1741020645907,-500.0,0.00014778,2]
[355217911,1741020645916,-1263.73,0.00014778,2]
[355217912,1741020645925,-1676.16,0.00014778,2]
[355217913,1741020645934,-500.0,0.00014778,2]
[355217914,1741020645943,-500.0,0.00014778,2]
[355217915,1741020645952,-500.0,0.00014778,2]
[355217916,1741020645962,-500.0,0.00014778,2]
[355217917,1741020645971,-722.3,0.00014778,2]
[355217918,1741020645980,-896.11,0.00014778,2]
[355217919,1741020645989,-500.95304027,0.00014778,2]
[355217920,1741020646000,-509.26,0.00014778,2]
[355217921,1741020646010,-500.0,0.00014778,2]
[355217922,1741020646019,-500.0,0.00014778,2]
[355217923,1741020646028,-500.0,0.00014778,2]
[355217924,1741020646037,-2578.01,0.00014778,2]
[355217925,1741020646046,-500.0,0.00014778,2]
[355217926,1741020646056,-500.0,0.00014778,2]
[355217927,1741020646066,-265.22572145,0.00014778,2]
[355217928,1741020646075,-567.93,0.00014778,2]
[355217929,1741020646084,-500.0,0.00014778,2]
[355217930,1741020646097,-500.0,0.00014778,2]
[355217931,1741020646106,-1015.59,0.00014778,2]
[355217932,1741020646115,-500.0,0.00014778,2]
[355217934,1741020646125,-996.39,0.00014778,2]
[355217936,1741020646136,-1352.57,0.00014778,2]
[355217938,1741020646145,-1985.39,0.00014778,2]
[355217940,1741020646155,-500.0,0.00014778,2]
[355217942,1741020646164,-500.0,0.00014778,2]
[355217943,1741020646173,-500.0,0.00014778,2]
[355217945,1741020646185,-500.0,0.00014778,2]
[355217947,1741020646194,-500.0,0.00014778,2]
[355217949,1741020646203,-868.82,0.00014778,2]
[355217951,1741020646212,-442.49632988,0.00014778,2]
[355217953,1741020646221,-500.0,0.00014778,2]
[355217954,1741020646232,-500.0,0.00014778,2]
[355217955,1741020646241,-500.0,0.00014778,2]
[355217956,1741020646253,-2687.89,0.00014778,2]
[355217957,1741020646263,-165.60374786,0.00014778,2]
[355217958,1741020646273,-1269.08,0.00014778,2]
[355217959,1741020646283,-472.27214321,0.00014778,2]
[355217960,1741020646292,-500.0,0.00014778,2]
[355217961,1741020646302,-10196.95,0.00014778,2]
[355217962,1741020646312,-500.0,0.00014779,2]
[355217963,1741020646321,-500.0,0.00014779,2]
[355217964,1741020646331,-500.0,0.00014779,2]
[355217965,1741020646340,-500.0,0.00014779,2]
[355217966,1741020646350,-500.0,0.00014779,2]
[355217967,1741020646359,-500.0,0.00014779,2]
[355217968,1741020646368,-500.0,0.00014779,2]
[355217969,1741020646378,-500.0,0.00014779,2]
[355217970,1741020646387,-500.0,0.00014779,2]
[355217971,1741020646396,-500.0,0.00014779,2]
[355217972,1741020646406,-500.0,0.00014779,2]
[355217973,1741020646415,-500.0,0.00014779,2]
[355217974,1741020646425,-500.0,0.00014779,2]
[355217975,1741020646434,-500.0,0.00014779,2]
[355217976,1741020646444,-500.0,0.00014779,2]
[355217977,1741020646453,-500.0,0.00014779,2]
[355217978,1741020646463,-500.0,0.00014779,2]
[355217979,1741020646473,-500.0,0.00014779,2]
[355217980,1741020646482,-500.0,0.00014779,2]
[355217981,1741020646493,-500.0,0.00014779,2]
[355217982,1741020646503,-58.81831225,0.00014779,2]
[355217983,1741020647112,-441.18168775,0.00014779,2]
[355217984,1741020647122,-500.0,0.00014779,2]
[355217985,1741020647131,-500.0,0.00014779,2]
[355217986,1741020647142,-500.0,0.00014779,2]
[355217987,1741020647151,-500.0,0.00014779,2]
[355217988,1741020647161,-500.0,0.00014779,2]
[355217989,1741020647170,-500.0,0.00014779,2]
[355217990,1741020647181,-507.14211847,0.00014779,2]
[355217991,1741020647190,-500.0,0.00014779,2]
[355217992,1741020647200,-431.45220378,0.00014779,2]
[355217993,1741020647221,-68.54779622,0.00014779,2]
[355217994,1741020647230,-500.0,0.00014779,2]
[355217995,1741020647239,-171.55634352,0.00014779,2]
[355217996,1741020647589,-328.44365648,0.00014779,2]
[355217997,1741020647599,-500.0,0.00014779,2]
[355217998,1741020647609,-500.0,0.00014779,2]
[355217999,1741020647619,-500.0,0.00014779,2]
[355218000,1741020647628,-635.46,0.00014779,2]
[355218001,1741020647638,-500.0,0.00014779,2]
[355218002,1741020647647,-500.0,0.00014779,2]
[355218003,1741020647656,-500.0,0.00014779,2]
[355218004,1741020647666,-500.0,0.00014779,2]
[355218005,1741020647863,-500.0,0.00014779,2]
[355218006,1741020647874,-500.0,0.00014779,2]
[355218007,1741020647883,-500.0,0.00014779,2]
[355218008,1741020647893,-559.17,0.00014779,2]
[355218009,1741020647902,-500.0,0.00014779,2]
[355218010,1741020647911,-500.0,0.00014779,2]
[355218011,1741020647921,-500.0,0.00014779,2]
[355218012,1741020647930,-500.0,0.00014779,2]
[355218013,1741020647940,-500.0,0.00014779,2]
[355218014,1741020647949,-500.0,0.00014779,2]
[355218015,1741020647958,-500.0,0.00014779,2]
[355218016,1741020647967,-500.0,0.00014779,2]
[355218017,1741020647977,-500.0,0.00014779,2]
[355218018,1741020647986,-500.0,0.00014779,2]
[355218019,1741020648000,-500.0,0.00014779,2]
[355218020,1741020648011,-500.0,0.00014779,2]
[355218021,1741020648022,-500.0,0.00014779,2]
[355218022,1741020648033,-500.0,0.00014779,2]
[355218023,1741020648044,-500.0,0.00014779,2]
[355218024,1741020648056,-500.0,0.00014779,2]
[355218025,1741020648067,-518.56,0.00014779,2]
[355218026,1741020648077,-500.0,0.00014779,2]
[355218027,1741020648088,-567.07016017,0.00014779,2]
[355218028,1741020648100,-500.0,0.00014779,2]
[355218029,1741020648113,-300.09939697,0.00014779,2]
[355218030,1741020648123,-619.61,0.00014779,2]
[355218031,1741020648134,-500.0,0.00014779,2]
[355218032,1741020648145,-500.0,0.00014779,2]
[355218033,1741020648156,-500.0,0.00014779,2]
[355218034,1741020648166,-853.1,0.00014779,2]
[355218035,1741020648176,-793.88,0.00014779,2]
[355218036,1741020648187,-500.0,0.00014779,2]
[355218037,1741020648198,-500.0,0.00014779,2]
[355218038,1741020648208,-500.0,0.00014779,2]
[355218039,1741020648218,-500.0,0.00014779,2]
[355218040,1741020648229,-500.0,0.00014779,2]
[355218041,1741020648239,-500.0,0.00014779,2]
[355218042,1741020648254,-500.0,0.00014779,2]
[355218043,1741020648266,-609.23,0.00014779,2]
[355218044,1741020648277,-500.0,0.00014779,2]
[355218045,1741020648289,-500.0,0.00014779,2]
[355218046,1741020648300,-500.0,0.00014779,2]
[355218047,1741020648311,-500.0,0.00014779,2]
[355218048,1741020648322,-500.0,0.00014779,2]
[355218049,1741020648332,-863.0,0.00014779,2]
[355218050,1741020648343,-500.0,0.00014779,2]
[355218051,1741020648353,-500.0,0.00014779,2]
[355218052,1741020648363,-608.43,0.00014779,2]
[355218053,1741020648373,-500.0,0.00014779,2]
[355218054,1741020648383,-500.0,0.00014779,2]
[355218055,1741020648393,-500.0,0.00014779,2]
[355218056,1741020648404,-500.0,0.00014779,2]
[355218057,1741020648414,-501.80013821,0.00014779,2]
[355218058,1741020648424,-500.0,0.00014779,2]
[355218059,1741020648434,-817.6,0.00014779,2]
[355218060,1741020648444,-500.0,0.00014779,2]
[355218061,1741020648454,-508.44815269,0.00014779,2]
[355218062,1741020648464,-500.0,0.00014779,2]
[355218063,1741020648474,-500.0,0.00014779,2]
[355218064,1741020648485,-211.33777305,0.00014779,2]
[355218065,1741020648497,-480.55696015,0.00014779,2]
[355218066,1741020765647,231.72,0.00013759,2]
[355218067,1741020840528,5488.509382,0.00014482,2]
[355218068,1741020962725,156.81,0.00013716,2]
[355218069,1741020962936,156.81,0.00013805,2]
[355218070,1741020963152,156.81,0.00013894,2]
[355218071,1741020963575,156.81,0.00013983,2]
[355218072,1741020963813,156.81,0.00014071,2]
[355218073,1741020964038,156.81,0.0001416,2]
[355218074,1741020964255,156.81,0.00014249,2]
[355218075,1741020965131,156.81,0.00014338,2]
[355218076,1741020965436,156.81,0.00014426,2]
[355218077,1741020973101,402.42,0.00013706,2]
[355218078,1741020982863,250.0,0.00013716,2]
[355218079,1741021044432,5700.98,0.00013764,2]
[355218080,1741021077666,1000.0,0.00013716,2]
[355218081,1741021181343,169.02,0.00014144,2]
[355218082,1741021232356,23900.0,0.00013703,2]
[355218083,1741021301444,250.0,0.00013,2]
[355218084,1741021376814,516.53,0.00013711,2]
[355218085,1741021378759,916.2,0.00011793,2]
[355218086,1741021378970,916.2,0.00014057,2]
[355218087,1741021430112,250.0,0.00014363,2]
[355218088,1741021431836,150.0,0.00013704,7]
[355218089,1741021485380,515.47,0.00013703,2]
[355218090,1741021490721,1453.11,0.00013708,2]
[355218091,1741021503359,104.25,0.00015,30]
[355218092,1741021531563,246.0,0.0001414,2]
[355218093,1741021536866,1000.0,0.0002002,120]
[355218094,1741021556459,150.0,0.0001,2]
[355218095,1741021591923,162.16799997,0.0001,4]
[355218097,1741021616551,160.66,0.00013702,2]
[355218117,1741021832017,-156.81,0.00014515,2]
[355218118,1741021832027,-131.57669522,0.00014518,2]
[355218119,1741021832122,-18.42330478,0.00014518,2]
[355218120,1741021832131,-459.20343059,0.0001452,2]
[355218121,1741021832143,-90.79656941,0.0001452,2]
[355218122,1741021832152,-500.0,0.00014555,2]
[355218123,1741021832161,-1100.0,0.00014555,2]
[355218124,1741021832171,-9760.36947747,0.00014555,2]
[355218125,1741021832180,-150.0,0.00014578,2]
[355218126,1741021832189,-4715.6905,0.00014579,2]
[355218127,1741021832199,-31102.1972,0.00014579,2]
[355218128,1741021832208,-246.0,0.0001458,2]
[355218129,1741021832217,-156.81,0.00014604,2]
[355218130,1741021832226,-326.37761,0.0001463,2]
[355218131,1741021832236,-1099.66895685,0.00014676,2]
[355218132,1741021832244,-532.60004109,0.00014676,2]
[355218133,1741021832254,-772.89353811,0.00014676,2]
[355218134,1741021832264,-4620.0704,0.00014677,2]
[355218135,1741021832274,-4259.7796,0.00014677,2]
[355218136,1741021832284,-2716.63625667,0.00014677,2]
[355218137,1741021832295,-541.05884223,0.00014677,2]
[355218138,1741021832313,-6100.52241716,0.00014677,2]
[355218139,1741021832330,-12093.41298394,0.00014677,2]
[355218140,1741021832340,-4542.0067,0.00014678,2]
[355218141,1741021832351,-532.60004101,0.00014678,2]
[355218142,1741021832361,-772.89353809,0.00014678,2]
[355218143,1741021832371,-30063.3279,0.00014678,2]
[355218144,1741021832381,-269.2459,0.00014678,2]
[355218145,1741021832391,-2163.1079,0.00014678,2]
[355218146,1741021832401,-8662.2481,0.00014679,2]
[355218147,1741021832412,-155.25079041,0.00014679,2]
[355218148,1741021832422,-532.60004101,0.0001468,2]
[355218149,1741021832432,-772.89353809,0.0001468,2]
[355218150,1741021832442,-532.60004101,0.00014682,2]
[355218151,1741021832452,-772.89353809,0.00014682,2]
[355218152,1741021832461,-532.60004101,0.00014684,2]
[355218153,1741021832471,-772.89353809,0.00014684,2]
[355218154,1741021832480,-532.60004101,0.00014685,2]
[355218155,1741021832490,-772.89353809,0.00014685,2]
[355218156,1741021832507,-532.60004101,0.00014687,2]
[355218157,1741021832518,-772.89353809,0.00014687,2]
[355218158,1741021832527,-126.64531304,0.00014689,2]
[355218159,1741021832547,-405.95472797,0.00014689,2]
[355218160,1741021832560,-99.61239296,0.00014689,2]
[355218161,1741021832574,-673.28114513,0.00014689,2]
[355218162,1741021832586,-532.60004101,0.00014691,2]
[355218163,1741021832596,-772.89353809,0.00014691,2]